Cogmind - Beta 17 --- EXPLORER MODE // 2026.08.18 @ 00:34:02 // AFD2019/Pay2Buy Player: Goose Result: Destroyed by G-50 Soldier with Heavy Laser Performance ------------- Evolutions (5) 2500 Regions Visited (14) 2800 Robots Destroyed (46) 230 Value Destroyed (1147) 1147 Prototype IDs (27) 540 Alien Tech Used (0) 0 Bonus (1003) 1003 TOTAL SCORE: 8220 Bonus ------- Follower Combat Kills 203 Entered DSFs 500 Aligned with FarCom 300 Cogmind --------- Core Integrity 0/1000 Matter 300/300 Energy 99/100 System Corruption 2% Temperature Cool (9) Movement Core (50) Location -5/Upper Caves Parts ------- > --- POWER (2) -------- (None) > --- PROPULSION (6) --- (None) > --- UTILITY (6) ------ (None) > --- WEAPON (4) ------- (None) > --- INVENTORY (10) --- Advanced ECM Suite Weapon Shielding Maul Katana Fire Trap Peak State ------------ > --- POWER ------------ Heavy Deuterium Engine > --- PROPULSION ------- Improved Airjet Improved Airjet Improved Airjet > --- UTILITY ---------- Improved Sensor Array Improved Signal Interpreter Improved Terrain Scanner Improved Terrain Scan Processor > --- WEAPON ----------- Flak Cannon Rocket Launcher > --- INVENTORY -------- Advanced ECM Suite Weapon Shielding Light Assault Rifle Heavy Assault Rifle Maul Maul Great Maul Katana [Rating: 38] Favorites ----------- Power Nuclear Core Engine Heavy Deuterium Engine Power Core Nuclear Core Propulsion Overtuned Treads Treads Overtuned Treads Wheel Compact Wheel Hover Unit Improved Airjet Flight Unit VTOL Module Utility Improved Terrain Scan Processor Device Improved Sensor Array Processor Improved Terrain Scan Processor Protection Weapon Shielding Weapon Great Maul Ballistic Gun Heavy Assault Rifle Ballistic Cannon Flak Cannon Launcher Rocket Launcher Impact Weapon Great Maul Slashing Weapon Katana Build | -11 -10 -10 -9 -9 -9 -8 -8 -7 -7 -6 -5 -5 -5 -5 ------- Run | Yrd Mat Min Mat Min Exi Min Mat Fac DSF Fac Fac Was Fac Upp Slots Evolved 11 | . 1 . 2 . . . 2 2 . 2 2 . . . Power 1 | . . . 1 . . . . . . . . . . . Propulsion 4 | . . . . . . . 2 . . 2 . . . . Utility 4 | . 1 . 1 . . . . . . . 2 . . . Weapon 2 | . . . . . . . . 2 . . . . . . Parts Attached 12 | . 4 . . . . . 1 . 3 1 . 2 . 1 Power . | . . . . . . . . . . . . . . . Engine . | . . . . . . . . . . . . . . . Core . | . . . . . . . . . . . . . . . Reactor . | . . . . . . . . . . . . . . . Propulsion 5 | . . . . . . . . . 3 . . 2 . . Treads . | . . . . . . . . . . . . . . . Leg . | . . . . . . . . . . . . . . . Wheel . | . . . . . . . . . . . . . . . Hover 2 | . . . . . . . . . . . . 2 . . Flight 3 | . . . . . . . . . 3 . . . . . Utility . | . . . . . . . . . . . . . . . Device . | . . . . . . . . . . . . . . . Storage . | . . . . . . . . . . . . . . . Processor . | . . . . . . . . . . . . . . . Hackware . | . . . . . . . . . . . . . . . Protection . | . . . . . . . . . . . . . . . Artifact . | . . . . . . . . . . . . . . . Weapon 7 | . 4 . . . . . 1 . . 1 . . . 1 Energy Gun . | . . . . . . . . . . . . . . . Energy Cannon . | . . . . . . . . . . . . . . . Ballistic Gun 2 | . . . . . . . 1 . . 1 . . . . Ballistic Cannon 1 | . 1 . . . . . . . . . . . . . Launcher 1 | . 1 . . . . . . . . . . . . . Special Weapon . | . . . . . . . . . . . . . . . Impact Weapon 2 | . 2 . . . . . . . . . . . . . Slashing Weapon 1 | . . . . . . . . . . . . . . 1 Piercing Weapon . | . . . . . . . . . . . . . . . Special Melee Weapon . | . . . . . . . . . . . . . . . Unidentified Prototypes . | . . . . . . . . . . . . . . . Parts Lost 18 | . . . . . . 1 5 . 1 3 . 3 . 5 Power 2 | . . . . . . 1 1 . . . . . . . Propulsion 7 | . . . . . . . 1 . . 3 . 2 . 1 Utility 4 | . . . . . . . 2 . 1 . . 1 . . Weapon 5 | . . . . . . . 1 . . . . . . 4 Highest Loss Streak 5 | . . . . . . 1 4 . 1 2 . 3 . 5 To Critical Strikes . | . . . . . . . . . . . . . . . Average Backups 7 | . 6 6 6 6 7 8 8 8 8 8 9 8 7 6 Power . | . . . . . . . . . . . . . . . Propulsion . | . . . . . . . . . . 2 2 . . . Utility 1 | . . . . . 1 2 2 2 2 2 2 2 2 2 Weapon 5 | . 6 6 6 6 6 6 6 6 6 4 5 6 5 4 Tool/Special . | . . . . . . . . . . . . . . . Unused Backups 1 | . . . . . . . . . . . . . . 1 Power . | . . . . . . . . . . . . . . . Propulsion . | . . . . . . . . . . . . . . . Utility . | . . . . . . . . . . . . . . . Weapon 1 | . . . . . . . . . . . . . . 1 Tool/Special . | . . . . . . . . . . . . . . . Average Slot Usage (%) 51 | . 45 50 48 50 67 60 68 42 39 32 13 16 . 3 Core 5 | . 11 12 10 10 10 . . . . . 5 4 . . Treads 1 | . . . . . 6 . . . . . . . . . Hover 1 | . . . . . . . 22 14 11 . . 7 . . Device 11 | . . . 8 10 15 20 11 . . . . . . . Processor 9 | . . . . . 10 20 16 14 11 6 5 4 . . Protection 4 | . 11 12 10 10 4 . . . . . . . . . Launcher 2 | . . . . . . 9 1 . . . . . . . Impact Weapon 13 | . 14 25 20 20 20 9 4 7 7 . 2 . . 1 Peak Build Rating 38 | . 10 10 14 14 24 24 38 26 26 17 13 19 4 11 Average Rating 16 | . 9 10 13 14 19 19 33 26 23 14 11 13 1 2 On Entrance 12 | . . 10 10 14 14 24 19 23 26 17 13 10 1 1 Avg Prop Armor Cover (%) 18 | . . . . . 18 18 . . . . . . . . Naked Turns 495 | . 3 . . . . . . . . . . 25 261 206 Heaviest Build 23 | . 18 15 18 18 18 16 23 16 16 12 12 8 4 7 Greatest Support 27 | 3 3 3 3 3 18 18 27 18 18 12 3 18 3 16 Greatest Overweight (x) 5 | . 5 4 5 5 5 5 3 . 3 3 3 2 1 1 Average Overweight (x) 1 | . 3 4 4 5 3 2 . . . . 2 . . . Largest Inventory Capacity 10 | 10 10 10 10 10 10 10 10 10 10 10 10 10 10 10 Average Capacity 10 | 10 10 10 10 10 10 10 10 10 10 10 10 10 10 10 Most Carried 10 | . 8 6 6 6 8 10 10 8 10 10 10 10 8 9 Average Carried 7 | . 6 6 6 6 7 8 8 8 8 8 9 8 7 7 Final Capacity 10 | 10 10 10 10 10 10 10 10 10 10 10 10 10 10 10 Final Carried 10 | . 6 6 6 6 8 9 7 8 10 9 10 8 8 5 Class Distribution -------------------- 53% | Hacker-Mutant 37% | Hacker-Assassin 4% | Hacker-Scout 3% | Hacker-Sprinter Dominant Class ---------------- Hacker-Mutant | -10/Materials Hacker-Mutant | -10/Mines Hacker-Mutant | -9/Materials Hacker-Mutant | -9/Mines Hacker-Assassin | -9/Exiles Hacker-Assassin | -8/Mines Hacker-Scout | -8/Materials Hacker-Mutant | -7/Factory Hacker-Mutant | -7/DSF Hacker-Sprinter | -6/Factory Hacker-Mutant | -5/Factory Hacker-Mutant | -5/Waste Hacker-Mutant | -5/Factory Hacker-Mutant | -5/Upper Caves Resources | -11 -10 -10 -9 -9 -9 -8 -8 -7 -7 -6 -5 -5 -5 -5 ----------- Run | Yrd Mat Min Mat Min Exi Min Mat Fac DSF Fac Fac Was Fac Upp Matter Collected 887 | . 70 . 206 . . 234 128 . . 23 . . . 226 Remotely . | . . . . . . . . . . . . . . . Salvage Created 1236 | . 70 . 201 85 . 418 383 . . 23 . . . 56 Parts . | . . . . . . . . . . . . . . . Haulers Intercepted 2 | . 1 . 1 . . . . . . . . . . . Recyclers Shooed . | . . . . . . . . . . . . . . . Parts Field Recycled . | . . . . . . . . . . . . . . . Retrieved Matter . | . . . . . . . . . . . . . . . Parts Self-Destructed . | . . . . . . . . . . . . . . . Prevented . | . . . . . . . . . . . . . . . Parts Restored . | . . . . . . . . . . . . . . . Kills | -11 -10 -10 -9 -9 -9 -8 -8 -7 -7 -6 -5 -5 -5 -5 ------- Run | Yrd Mat Min Mat Min Exi Min Mat Fac DSF Fac Fac Was Fac Upp Combat Hostiles Destroyed 27 | . 1 . 3 2 . 11 7 . . 2 . . . 1 Melee 5 | . 1 . 1 1 . . 2 . . . . . . . Guns 1 | . . . . . . . . . . . . . . 1 Cannons 3 | . . . . . . 1 . . . 2 . . . . AOE 11 | . . . . . . 10 1 . . . . . . . Classes Destroyed 12 | . 3 . 3 1 . 4 1 . . . . . . . Worker 8 | . . . 2 1 . 3 2 . . . . . . . Builder 2 | . . . 1 . . 1 . . . . . . . . Tunneler 1 | . . . . . . 1 . . . . . . . . Hauler 2 | . 1 . 1 . . . . . . . . . . . Recycler 2 | . . . . . . 2 . . . . . . . . Operator 1 | . . . . . . . 1 . . . . . . . Watcher 3 | . 1 . . . . . 2 . . . . . . . Swarmer 8 | . . . . 2 . 4 . . . 2 . . . . Grunt 13 | . 1 . 2 . . 5 4 . . . . . . 1 Brawler 2 | . . . . . . 1 1 . . . . . . . Sentry 3 | . . . 1 . . . 2 . . . . . . . Hunter 1 | . . . . . . 1 . . . . . . . . Best Kill Streak 6 | . 1 . 2 2 . 5 6 . . 2 . . . 1 Combat Bots Only 4 | . 1 . 2 2 . 4 2 . . 2 . . . 1 Max Kills in Single Turn 2 | . 1 . 1 1 . 2 1 . . 1 . . . 1 Gunslinging . | . . . . . . . . . . . . . . . Exploded 2 | . . . . . . 2 1 . . . . . . . Melee 1 | . 1 . 1 1 . . 1 . . . . . . . Uniques/NPCs Destroyed . | . . . . . . . . . . . . . . . Combat | -11 -10 -10 -9 -9 -9 -8 -8 -7 -7 -6 -5 -5 -5 -5 -------- Run | Yrd Mat Min Mat Min Exi Min Mat Fac DSF Fac Fac Was Fac Upp Hostile Shots Fired 473 | . 6 . 59 9 . 23 112 . 6 96 . 5 47 110 Missed 174 | . 3 . 16 7 . 9 33 . 5 44 . 1 17 39 Hits 299 | . 3 . 43 2 . 14 79 . 1 52 . 4 30 71 Melee 7 | . . . . . . . 3 . . . . 4 . . Projectile 292 | . 3 . 43 2 . 14 76 . 1 52 . . 30 71 AOE 2 | . . . . . . . . . . 2 . . . . Critical Strikes 11 | . . . . . . 2 6 . . . . 2 1 . Damage Taken 2828 | . 22 . 297 10 . 127 735 . 33 407 . 124 405 668 Core 1497 | . 15 . 135 10 . 6 186 . . 145 . 118 405 477 Absorbed by Shields . | . . . . . . . . . . . . . . . Redirected to Shielding 22 | . 1 . 21 . . . . . . . . . . . Ignored by Resistances 1679 | . 13 . 192 8 . 83 431 . 18 261 . 68 213 392 Core Remaining (%) 84 | 100 . 94 . . . 62 66 . 100 82 . . . . Volleys Fired 49 | . 4 . . . . 18 10 . . 9 . . . 8 Largest 3 | . 2 . . . . 2 2 . . 3 . . . 3 Hottest 80 | . 70 . . . . 70 70 . . 80 . . . 80 Shots Fired 83 | . 8 . . . . 19 14 . . 27 . . . 15 Gun 36 | . 3 . . . . . 3 . . 18 . . . 12 Cannon 23 | . 4 . . . . 1 6 . . 9 . . . 3 Launcher 24 | . 1 . . . . 18 5 . . . . . . . Special . | . . . . . . . . . . . . . . . Kinetic 59 | . 7 . . . . 1 9 . . 27 . . . 15 Thermal . | . . . . . . . . . . . . . . . Explosive 24 | . 1 . . . . 18 5 . . . . . . . Electromagnetic . | . . . . . . . . . . . . . . . Robot Hit Streak 12 | . 3 . . . . 9 7 . . 9 . . . 12 Robot Miss Streak 7 | . 2 . . . . 1 2 . . 7 . . . 3 Penetration Max . | . . . . . . . . . . . . . . . Secondary Targets . | . . . . . . . . . . . . . . . Shots Hit Robots 111 | . 8 . 10 6 . 18 35 . . 19 . . . 15 Core Hits 72 | . 3 . 3 . . 30 13 . . 7 . . 3 13 Critical Kills . | . . . . . . . . . . . . . . . Critical Parts Destroyed 10 | . . . 3 1 . 2 4 . . . . . . . Critical Strikes 10 | . . . 3 1 . 2 4 . . . . . . . Smash 10 | . . . 3 1 . 2 4 . . . . . . . Melee Attacks 58 | . 3 . 12 7 . 3 26 . . 2 . . 4 1 Impact 58 | . 3 . 12 7 . 3 26 . . 2 . . 4 1 Slashing . | . . . . . . . . . . . . . . . Piercing . | . . . . . . . . . . . . . . . Sneak Attacks 11 | . 2 . 4 1 . 3 1 . . . . . . . Combat Hostiles . | . . . . . . . . . . . . . . . Follow-up Attacks 1 | . 1 . . . . . . . . . . . . . Damage Inflicted 4598 | . 306 . 580 462 . 1390 1384 . . 226 . . 37 213 Guns 224 | . 12 . . . . . 21 . . 66 . . . 125 Cannons 382 | . 26 . . . . 17 154 . . 100 . . . 85 Explosions 1356 | . 39 . . . . 1113 204 . . . . . . . Melee 2569 | . 224 . 580 462 . 260 983 . . 60 . . . . Ramming 67 | . 5 . . . . . 22 . . . . . 37 3 Kinetic 606 | . 38 . . . . 17 175 . . 166 . . . 210 Thermal . | . . . . . . . . . . . . . . . Explosive 1356 | . 39 . . . . 1113 204 . . . . . . . Electromagnetic . | . . . . . . . . . . . . . . . Impact 2569 | . 224 . 580 462 . 260 983 . . 60 . . . . Slashing . | . . . . . . . . . . . . . . . Piercing . | . . . . . . . . . . . . . . . Highest Corruption 2 | . . . . . . . 2 . . . . . 2 2 Average Corruption 1 | . . . . . . . 2 . . . . . 1 2 Corruption Purged . | . . . . . . . . . . . . . . . Corruption Blocked . | . . . . . . . . . . . . . . . Effects 6 | . . . . . . . 3 . . . . . . 3 Message Errors 1 | . . . . . . . . . . . . . . 1 Matter Fused 1 | . . . . . . . 1 . . . . . . . Heat Flow Errors 1 | . . . . . . . 1 . . . . . . . Energy Discharges 1 | . . . . . . . 1 . . . . . . . Data Loss (major) 1 | . . . . . . . . . . . . . . 1 Alerts 1 | . . . . . . . . . . . . . . 1 Overload Shots . | . . . . . . . . . . . . . . . Overflow Damage 1131 | . 78 . 189 360 . 238 266 . . . . . . . Projectiles . | . . . . . . . . . . . . . . . Explosions 21 | . 21 . . . . . . . . . . . . . Melee 1110 | . 57 . 189 360 . 238 266 . . . . . . . Knockbacks 24 | . . . 2 1 . 1 7 . . 11 . . . 2 Impact 5 | . . . 2 1 . . 2 . . . . . . . Kinetic 19 | . . . . . . 1 5 . . 11 . . . 2 Secondary . | . . . . . . . . . . . . . . . Self-Inflicted Damage 62 | . 2 . . . . 23 19 . . . . . 17 1 Shots 4 | . . . . . . 3 1 . . . . . . . Rammed 14 | . 2 . . . . . 3 . . . . . 8 1 Targets Rammed 14 | . 2 . . . . . 3 . . . . . 8 1 Kicked . | . . . . . . . . . . . . . . . Crushed . | . . . . . . . . . . . . . . . Highest Temperature 206 | . 18 . . . . 27 206 . . 1 . . . 4 Average Temperature 42 | . 10 . . . . 16 59 . . 1 . . . 4 Received Heat Transfer 1389 | . 18 . 264 . . 90 567 . . 108 . . 72 270 Siege Activations . | . . . . . . . . . . . . . . . Martial Activations . | . . . . . . . . . . . . . . . Shielding Activations . | . . . . . . . . . . . . . . . Robots Disrupted . | . . . . . . . . . . . . . . . Combat Hostiles . | . . . . . . . . . . . . . . . Robots Corrupted 15 | . 1 . 4 1 . 2 7 . . . . . . . Combat Hostiles 7 | . . . 2 1 . . 4 . . . . . . . Parts Fried . | . . . . . . . . . . . . . . . Impact Corruptions 37 | . 2 . 5 12 . 6 12 . . . . . . . Robots Melted . | . . . . . . . . . . . . . . . Combat Hostiles . | . . . . . . . . . . . . . . . Parts Melted . | . . . . . . . . . . . . . . . Heat Transferred . | . . . . . . . . . . . . . . . Parts Sabotaged . | . . . . . . . . . . . . . . . Parts Stolen . | . . . . . . . . . . . . . . . Parts Stripped . | . . . . . . . . . . . . . . . Power Chain Reactions . | . . . . . . . . . . . . . . . Alert | -11 -10 -10 -9 -9 -9 -8 -8 -7 -7 -6 -5 -5 -5 -5 ------- Run | Yrd Mat Min Mat Min Exi Min Mat Fac DSF Fac Fac Was Fac Upp Maximum Alert Level 1 | . . . . . . . 1 . . . . . . . Low Security (%) 98 | 100 100 100 100 100 . 100 83 100 100 100 100 100 100 . Level 1 1 | . . . . . . . 16 . . . . . . . Level 2 . | . . . . . . . . . . . . . . . Level 3 . | . . . . . . . . . . . . . . . Level 4 . | . . . . . . . . . . . . . . . Level 5 . | . . . . . . . . . . . . . . . High Security . | . . . . . . . . . . . . . . . Max Security . | . . . . . . . . . . . . . . . Peak Influence 233 | . 22 . 40 50 . 139 233 64 33 66 . . 15 . Initial 64 | . . . . . . . . 64 18 8 . . . . Average 18 | . 1 . 7 4 . 23 78 52 21 21 . . 1 . Influence Increases 1651 | . 51 . 286 70 . 429 428 . 15 111 . . 51 210 Destroy 0b10 Robot/C 680 | . 20 . 200 40 . 220 140 . . 40 . . . 20 Destroy 0b10 Robot/NC 120 | . 10 . 30 20 . 35 25 . . . . . . . Destroy Leader 192 | . 4 . 54 10 . 60 44 . . 10 . . . 10 Allied During Kill 2 | . . . 2 . . . . . . . . . . . Successful Hack 21 | . 8 . . . . . . . . . . . 13 . Disable Machine 20 | . 4 . . . . 8 8 . . . . . . . Destroy Structure 166 | . 5 . . . . 106 46 . . 1 . . 8 . Partial Spotted 45 | . . . . . . . 15 . . 15 . . 15 . Lose Combat Pursuer 405 | . . . . . . . 150 . 15 45 . . 15 180 Influence Decreases 1636 | . 51 . 286 70 . 429 230 164 26 134 . . 51 195 Entered New Map 165 | . . . . . . . . 134 16 15 . . . . Time Decay 1329 | . 51 . 264 70 . 429 180 30 . 109 . . 51 145 Lost Part 120 | . . . . . . . 50 . 10 10 . . . 50 Lost Ally 22 | . . . 22 . . . . . . . . . . . Squads Dispatched 11 | . . . 1 . . 1 5 . . 1 . . 3 . Investigation 4 | . . . . . . . 2 . . 1 . . 1 . Extermination 1 | . . . . . . . . . . . . . 1 . Reinforcement 5 | . . . 1 . . 1 2 . . . . . 1 . Assault . | . . . . . . . . . . . . . . . Garrison 1 | . . . . . . . 1 . . . . . . . Intercept . | . . . . . . . . . . . . . . . Searches Triggered . | . . . . . . . . . . . . . . . Construction Impeded 1 | . . . . . . 1 . . . . . . . . Haulers Reinforced . | . . . . . . . . . . . . . . . Active Scanning Responses . | . . . . . . . . . . . . . . . Cargo Convoy Interrupts . | . . . . . . . . . . . . . . . Stealth | -11 -10 -10 -9 -9 -9 -8 -8 -7 -7 -6 -5 -5 -5 -5 --------- Run | Yrd Mat Min Mat Min Exi Min Mat Fac DSF Fac Fac Was Fac Upp Distress Signals 4 | . . . 1 . . . 2 . . 1 . . . . Communications Jammed . | . . . . . . . . . . . . . . . Distress Signals . | . . . . . . . . . . . . . . . Times Spotted 102 | . 4 . 13 2 . 11 25 . 3 11 . 6 6 21 Peak Tracking Total 8 | . 2 . 4 2 . 4 8 . 2 5 . 6 5 8 Tactical Retreats 16 | . . . . . . . 6 . 1 1 . . 1 7 Traps | -11 -10 -10 -9 -9 -9 -8 -8 -7 -7 -6 -5 -5 -5 -5 ------- Run | Yrd Mat Min Mat Min Exi Min Mat Fac DSF Fac Fac Was Fac Upp Traps Triggered 6 | . 1 . . . . . . . 1 3 1 . . . Indirectly . | . . . . . . . . . . . . . . . Trap Hack Attempts . | . . . . . . . . . . . . . . . Triggered . | . . . . . . . . . . . . . . . Disarmed . | . . . . . . . . . . . . . . . Reprogrammed . | . . . . . . . . . . . . . . . Reused . | . . . . . . . . . . . . . . . Traps Extracted . | . . . . . . . . . . . . . . . Installed . | . . . . . . . . . . . . . . . Triggered . | . . . . . . . . . . . . . . . Most Traps Carried 1 | . . . . . . . . . . . . . . 1 Machines | -11 -10 -10 -9 -9 -9 -8 -8 -7 -7 -6 -5 -5 -5 -5 ---------- Run | Yrd Mat Min Mat Min Exi Min Mat Fac DSF Fac Fac Was Fac Upp Machines Disabled 6 | . 1 . . . . 2 2 . . . . . . 1 Max in Single Turn 2 | . 1 . . . . 1 2 . . . . . . 1 Machines Repaired . | . . . . . . . . . . . . . . . Machines Dismantled . | . . . . . . . . . . . . . . . Machines Sabotaged . | . . . . . . . . . . . . . . . Overloaded Fab Kills . | . . . . . . . . . . . . . . . Hacking | -11 -10 -10 -9 -9 -9 -8 -8 -7 -7 -6 -5 -5 -5 -5 --------- Run | Yrd Mat Min Mat Min Exi Min Mat Fac DSF Fac Fac Was Fac Upp Machines Accessed 13 | . 3 . . . 5 . 2 1 . 1 . . 1 . Terminals 8 | . 3 . . . . . 2 1 . 1 . . 1 . Fabricators . | . . . . . . . . . . . . . . . Repair Stations . | . . . . . . . . . . . . . . . Recycling Units . | . . . . . . . . . . . . . . . Scanalyzers . | . . . . . . . . . . . . . . . Garrison Access . | . . . . . . . . . . . . . . . Total Hacks 72 | . 8 . . . 50 . 5 1 . 3 . . 5 . Successful 64 | . 6 . . . 50 . 2 1 . 2 . . 3 . Failed 8 | . 2 . . . . . 3 . . 1 . . 2 . Catastrophic 1 | . 1 . . . . . . . . . . . . . Database Lockouts . | . . . . . . . . . . . . . . . Manual 19 | . 8 . . . 1 . 4 . . 1 . . 5 . Terminals 22 | . 8 . . . . . 5 1 . 3 . . 5 . Fabricators . | . . . . . . . . . . . . . . . Repair Stations . | . . . . . . . . . . . . . . . Recycling Units . | . . . . . . . . . . . . . . . Scanalyzers . | . . . . . . . . . . . . . . . Garrison Access . | . . . . . . . . . . . . . . . Terminal Hacks 60 | . 2 . . . 50 . 2 1 . 2 . . 3 . Record 52 | . . . . . 49 . 1 . . 2 . . . . Open DSF 1 | . . . . . . . . 1 . . . . . . Level Access Points 1 | . . . . . . . . . . . . . 1 . Branch Access Points 2 | . 1 . . . . . . . . . . . 1 . Emergency Access Points 3 | . 1 . . . . . 1 . . . . . 1 . Proto ID Catalog 1 | . . . . . 1 . . . . . . . . . Fabricator Hacks . | . . . . . . . . . . . . . . . Repair Station Hacks . | . . . . . . . . . . . . . . . Recycling Unit Hacks . | . . . . . . . . . . . . . . . Scanalyzer . | . . . . . . . . . . . . . . . Garrison Access Hacks . | . . . . . . . . . . . . . . . Unauthorized Hacks 4 | . 4 . . . . . . . . . . . . . Terminals 4 | . 4 . . . . . . . . . . . . . Track 2 | . 2 . . . . . . . . . . . . . Botnet 2 | . 2 . . . . . . . . . . . . . Fabricators . | . . . . . . . . . . . . . . . Repair Stations . | . . . . . . . . . . . . . . . Recycling Units . | . . . . . . . . . . . . . . . Scanalyzers . | . . . . . . . . . . . . . . . Garrison Access . | . . . . . . . . . . . . . . . Data Cores Recovered . | . . . . . . . . . . . . . . . Used . | . . . . . . . . . . . . . . . Hacking Detections 6 | . 2 . . . . . 2 . . 1 . . 1 . Full Trace Events 5 | . 1 . . . . . 2 . . 1 . . 1 . Feedback Events 1 | . . . . . . . . . . . . . 1 . Corruption 1 | . . . . . . . . . . . . . 1 . Feedback Blocked . | . . . . . . . . . . . . . . . Robot Schematics Acquired . | . . . . . . . . . . . . . . . Robots Built . | . . . . . . . . . . . . . . . Authchips . | . . . . . . . . . . . . . . . Time . | . . . . . . . . . . . . . . . Total Robot Build Rating . | . . . . . . . . . . . . . . . Part Schematics Acquired . | . . . . . . . . . . . . . . . Parts Built . | . . . . . . . . . . . . . . . Authchips . | . . . . . . . . . . . . . . . Time . | . . . . . . . . . . . . . . . Total Part Build Rating . | . . . . . . . . . . . . . . . Part Studies Acquired . | . . . . . . . . . . . . . . . Parts Repaired . | . . . . . . . . . . . . . . . Time . | . . . . . . . . . . . . . . . Parts Recycled . | . . . . . . . . . . . . . . . Recycled Matter . | . . . . . . . . . . . . . . . Retrieved Matter . | . . . . . . . . . . . . . . . Retrieved Components . | . . . . . . . . . . . . . . . Parts Scanalyzed . | . . . . . . . . . . . . . . . Part Schematics Acquired . | . . . . . . . . . . . . . . . Parts Damaged . | . . . . . . . . . . . . . . . Bothacking | -11 -10 -10 -9 -9 -9 -8 -8 -7 -7 -6 -5 -5 -5 -5 ------------ Run | Yrd Mat Min Mat Min Exi Min Mat Fac DSF Fac Fac Was Fac Upp Used RIF Installer . | . . . . . . . . . . . . . . . Robots Hacked . | . . . . . . . . . . . . . . . Non-combat . | . . . . . . . . . . . . . . . Combat . | . . . . . . . . . . . . . . . Robot Hacks Applied . | . . . . . . . . . . . . . . . Relay Couplers Released . | . . . . . . . . . . . . . . . Fabnet Peak Effective % . | . . . . . . . . . . . . . . . Robots Rewired . | . . . . . . . . . . . . . . . Allies Hacked . | . . . . . . . . . . . . . . . Hacks Repelled . | . . . . . . . . . . . . . . . Allies | -11 -10 -10 -9 -9 -9 -8 -8 -7 -7 -6 -5 -5 -5 -5 -------- Run | Yrd Mat Min Mat Min Exi Min Mat Fac DSF Fac Fac Was Fac Upp Total Allies 3 | . . 3 . . . . . . . . . . . . Largest Group 3 | . . 3 3 . . . . . . . . . . . Highest-Rated Group 40 | . . 40 40 . . . . . . . . . . . Highest-Rated Ally 16 | . . 16 16 . . . . . . . . . . . Total Orders . | . . . . . . . . . . . . . . . Ally Attacks 57 | . . . 57 . . . . . . . . . . . Total Damage 592 | . . . 592 . . . . . . . . . . . Kills 9 | . . . 9 . . . . . . . . . . . Allies Corrupted . | . . . . . . . . . . . . . . . Allies Melted . | . . . . . . . . . . . . . . . Intel | -11 -10 -10 -9 -9 -9 -8 -8 -7 -7 -6 -5 -5 -5 -5 ------- Run | Yrd Mat Min Mat Min Exi Min Mat Fac DSF Fac Fac Was Fac Upp Active Infowar (turns) 2867 | . . . 38 . 1107 1610 112 . . . . . . . Sensors 2829 | . . . . . 1107 1610 112 . . . . . . . Terrain 2829 | . . . . . 1107 1610 112 . . . . . . . ECM 38 | . . . 38 . . . . . . . . . . . Robot Analysis Total . | . . . . . . . . . . . . . . . Derelict Logs Recovered . | . . . . . . . . . . . . . . . Drone Launches . | . . . . . . . . . . . . . . . Drone Recoveries . | . . . . . . . . . . . . . . . Exploration | -11 -10 -10 -9 -9 -9 -8 -8 -7 -7 -6 -5 -5 -5 -5 ------------- Run | Yrd Mat Min Mat Min Exi Min Mat Fac DSF Fac Fac Was Fac Upp Turns Passed 7037 | 9 446 163 831 406 2044 1610 365 47 53 224 132 108 305 294 Spaces Moved 4677 | 18 186 66 276 130 788 785 452 100 98 504 77 201 536 460 Core 3157 | 18 186 66 276 130 588 754 10 . . 1 77 63 536 452 Treads 231 | . . . . . 200 31 . . . . . . . . Legs . | . . . . . . . . . . . . . . . Wheels 8 | . . . . . . . . . . . . . . 8 Hover 767 | . . . . . . . 442 100 87 . . 138 . . Flight 514 | . . . . . . . . . 11 503 . . . . Fastest Speed 29 | 50 50 250 250 300 140 140 42 46 29 29 150 46 50 50 Average Speed 141 | 50 226 250 288 300 259 198 45 46 47 30 172 52 52 55 Slowest Speed 300 | 50 300 250 300 300 300 300 200 46 275 200 200 150 100 100 Overloaded Moves . | . . . . . . . . . . . . . . . Propulsion Burnouts . | . . . . . . . . . . . . . . . Robots Hopped 12 | . . . . . . . . . . 12 . . . . Potential Cave-ins . | . . . . . . . . . . . . . . . Cave-ins Triggered . | . . . . . . . . . . . . . . . Exploration Rate (%) 39 | 3 38 22 21 23 91 97 36 4 88 13 2 82 12 58 Regions Visited 14 Branch Regions 5 Pre-discovered Areas 2 | . . . . 1 1 . . . . . . . . . Known Exits Taken 11 | 1 1 1 1 1 1 1 1 1 . 1 . . 1 . Unknown Exits Taken . | . . . . . . . . . . . . . . . Scrap Searched . | . . . . . . . . . . . . . . . Spaces Dug 6 | . . . . . . . 2 . . . . . 4 . Terrain Destroyed 193 | . 5 . . . . 140 44 . . . . . 4 . Melee 6 | . . . . . . . 2 . . . . . 4 . Projectile . | . . . . . . . . . . . . . . . AOE 187 | . 5 . . . . 140 42 . . . . . . . Terrain Rammed . | . . . . . . . . . . . . . . . Walls Destroyed . | . . . . . . . . . . . . . . . Machines Disabled . | . . . . . . . . . . . . . . . Actions | -11 -10 -10 -9 -9 -9 -8 -8 -7 -7 -6 -5 -5 -5 -5 --------- Run | Yrd Mat Min Mat Min Exi Min Mat Fac DSF Fac Fac Was Fac Upp Total 4908 | 17 199 65 291 135 791 810 543 100 104 540 78 202 549 484 Wait 77 | . . . 6 . . . 43 . . 22 . . . 6 Move 4640 | 17 185 65 275 129 787 784 451 99 97 479 77 200 535 460 Hop 12 | . . . . . . . . . . 12 . . . . Pick Up 1 | . . . . . . . . . . . . . . 1 Fast Attach 5 | . . . . . . . . . 3 2 . . . . Attach 18 | . 2 . . . . 1 3 . . 4 . 2 1 5 Detach 18 | . 2 . . . 2 2 2 1 3 3 1 . 1 1 Swap 9 | . 2 . . . . 2 4 . . . . . . 1 Drop 2 | . . . . . . . 1 . 1 . . . . . Fire 49 | . 4 . . . . 18 10 . . 9 . . . 8 Melee 54 | . 2 . 10 6 . 3 26 . . 2 . . 4 1 Ram 14 | . 2 . . . . . 3 . . . . . 8 1 Kick . | . . . . . . . . . . . . . . . Crush . | . . . . . . . . . . . . . . . Escape Stasis 7 | . . . . . . . . . . 7 . . . . Rewire 2 | . . . . . 2 . . . . . . . . . Trap . | . . . . . . . . . . . . . . . Miscellaneous . | . . . . . . . . . . . . . . . Route ------- -11/Scrapyard -10/Materials -10/Mines -9/Materials -9/Mines -9/Exiles (discovered 2 exits: *Min x2) -8/Mines (discovered 2 exits: *Mat x2) -8/Materials -7/Factory -7/DSF -6/Factory -5/Factory -5/Waste -5/Factory (discovered 6 exits: Fac x4 / *Upp x2) -5/Upper Caves History --------- Turn | Location | Event 2 | -11/Scrapyard | Met Revision 17 3 | -11/Scrapyard | Identified exit to Materials 3 | -11/Scrapyard | Discovered exit to Materials (range 15) 10 | -11/Scrapyard | Entered Materials 10 | -10/Materials | Evolved 1 slot: Utility x1 93 | -10/Materials | Identified exit to Mines 307 | -10/Materials | Build established: Hacker-Mutant 456 | -10/Materials | Entered Mines 468 | -10/Mines | Met a Derelict bent on vengeance 571 | -10/Mines | Identified exit to Materials 571 | -10/Mines | Discovered exit to Materials (range 11) 604 | -10/Mines | Assisted by bots powering up and referring to "LRC-V3" 619 | -10/Mines | Entered Materials 619 | -9/Materials | Accompanied by 3 allies 619 | -9/Materials | Evolved 2 slots: Power x1, Utility x1 1423 | -9/Materials | Identified exit to Mines 1423 | -9/Materials | Discovered exit to Mines (range 8) 1450 | -9/Materials | Entered Mines 1472 | -9/Mines | Learned location of Storage (-7) 1835 | -9/Mines | Deemed a non-threat by the Exiles lab entrance 1838 | -9/Mines | Identified exit to Exiles 1838 | -9/Mines | Discovered exit to Exiles (range 5) 1856 | -9/Mines | Entered Exiles 1937 | -9/Exiles | Identified exit to Mines 1937 | -9/Exiles | Discovered exit to Mines (range 14) 1991 | -9/Exiles | Met 8R-AWN 2126 | -9/Exiles | Met EX-HEX 2275 | -9/Exiles | Met EX-BIN 2332 | -9/Exiles | Aligned with FarCom system 2335 | -9/Exiles | Given EX-Vault access code 2569 | -9/Exiles | Opened EX-Vault 2623 | -9/Exiles | Warned to stay clear of 0b10 Research branches 2694 | -9/Exiles | Met EX-DEC 2711 | -9/Exiles | Learned location of Zion (-6) 2904 | -9/Exiles | Discovered exit to Mines (range 12) 3050 | -9/Exiles | Visited The Gauntlet 3080 | -9/Exiles | Build established: Hacker-Assassin 3900 | -9/Exiles | Entered Mines 4779 | -8/Mines | Identified exit to Materials 4779 | -8/Mines | Discovered exit to Materials (range 10) 5047 | -8/Mines | Discovered exit to Materials (range 8) 5510 | -8/Mines | Entered Materials 5510 | -8/Materials | Evolved 2 slots: Propulsion x2 5862 | -8/Materials | Garrison activated, responded to threat 5867 | -8/Materials | Identified exit to Factory 5867 | -8/Materials | Discovered exit to Factory (range 13) 5875 | -8/Materials | Entered Factory 5875 | -7/Factory | Evolved 2 slots: Weapon x2 5889 | -7/Factory | Lost 4 parts (1p1n1u1w) 5921 | -7/Factory | Identified exit to DSF 5922 | -7/Factory | Entered DSF 5946 | -7/DSF | Additional patrols routed to DSF 5959 | -7/DSF | Identified exit to Factory 5959 | -7/DSF | Discovered exit to Factory (range 15) 5975 | -7/DSF | Entered Factory 5975 | -6/Factory | Evolved 2 slots: Propulsion x2 6185 | -6/Factory | Identified exit to Factory 6185 | -6/Factory | Discovered exit to Factory (range 11) 6199 | -6/Factory | Entered another Factory area 6199 | -5/Factory | Evolved 2 slots: Utility x2 6331 | -5/Factory | Sucked down chute 6331 | -5/Factory | Entered Waste 6342 | -5/Waste | Spotted C-40 Crusher 6371 | -5/Waste | Spotted C-40 Crusher 6376 | -5/Waste | Spotted C-40 Crusher 6381 | -5/Waste | Spotted C-40 Crusher 6385 | -5/Waste | Spotted C-40 Crusher 6388 | -5/Waste | Spotted C-40 Crusher 6413 | -5/Waste | Crushed by Compactor (1 part destroyed, 1 dropped) 6414 | -5/Waste | Crushed by Compactor (1 part destroyed) 6431 | -5/Waste | Identified exit to Factory 6431 | -5/Waste | Discovered exit to Factory (range 16) 6439 | -5/Waste | Entered Factory 6445 | -5/Factory | Lost 3 parts (2n1u) 6449 | -5/Factory | Identified exit to Upper Caves 6449 | -5/Factory | Identified exit to Factory 6484 | -5/Factory | Build established: Hacker-Mutant 6724 | -5/Factory | Core integrity fell below 50% 6744 | -5/Factory | Entered Upper Caves 6755 | -5/Upper Caves | Attracted the attention of an 0b10 checkpoint 6779 | -5/Upper Caves | Attacked by a delusional Derelict stockpiling Unaware 6827 | -5/Upper Caves | Attracted the attention of an 0b10 outpost 6979 | -5/Upper Caves | Core integrity fell below 20% 7011 | -5/Upper Caves | Lost 5 parts (1n4w) 7038 | -5/Upper Caves | Destroyed by G-50 Soldier with Heavy Laser Last Messages --------------- 06966_ G-67 Veteran destroyed. 06967_ Flak Cannon destroyed. 06969_ G-50 Soldier destroyed. 06970_ Hvy. Assault Rifle destroyed. 06970_ Slug penetrates Wall. 06973_ Great Maul destroyed. 06977_ Slug penetrates Wall. 06977_ Lgt. Assault Rifle destroyed. 06978_ Slug penetrates Wall. 06979_ Acquired 59 matter. 06980_ Com. Wheel destroyed. 06980_ Penetrated by Slug. 06980_ Slug penetrates Wall. 06982_ Slammed into H-66 Slayer. 06983_ Penetrated by Slug. 06983_ Slug penetrates Wall. 06984_ Wall collapses. [DISCOUNT: For the next 72 turns enjoy 50% off any Flight Unit!] 06999_ Penetrated by Slug. [Achievement: Overachiever] Map ----- +----------------------------------------------------+ | ???????????????????????????????????????????????? | | ???????????????????????????????????????????????? | | ???????????????????????????????????????????????? | | ???????????????????????????????????????????????? | | ???????????????????????????????????????????????? | | ???????????????????????????????????????????????? | | ???????????????????????????????????????????????? | | ???????????????????????????????????????????????? | | ???????????????????????????????????????????????? | | ???????????????????????????????????????????????? | | ???????????????????????????????????????????????? | | ???????????????????????????????????????????????? | | ???????????????????????????????????????????????? | | ???????????????????????????????????????????????? | | ???????????????????????????????????????????????? | | ???????????????????????????????????????????????? | | ???????????????????????????????????????????????? | | ???????????????????????????????????????????????? | | ???????????????????????????????????????????????? | | ???????????????????????????????????????????????? | | ?###???????????????????????????????????????????? | | #" #???????????????????????????????????????????? | | ""????????????????????????????????????????????? | | "########??????????????####???????????????????? | | "# #??????#??????## ###?????????????????? | | #??????# ## @ ###???????????????? | | #?????????# #???????????????? | | #??????????# #???????????????? | | ##???????##### ### #???????????????? | | #??????## ## g l##?# #???????????????? | | # #?????# g #??## #???????????????? | | # #????# #??## #???????????????? | | #? #????# #?## #???????????????? | | #?? ##????# ### ## #???????????????? | | #???####??# ####??## #???????????????? | | #??## ##?# #??????## ##??????????????? | | #### ### #???????# #??????????????? | | ## ## #???????# #??????????????? | | ### ## #???????## ##??????????????? | | #??# ## ######???## ##???????????????? | | ##?# ##??## ##????????????????? | | ### #??# #?????????????????? | | ## ### #??# ##????????????????? | | ### ##?# #????????????????? | | ## ## #### #????????????????? | | ## ## #????????????????? | | ### ### ##???????????????? | | ### ## #### #???????????????? | | # ##??## #???????????????? | | ## #???## ##??????????????? | +----------------------------------------------------+ Best States ------------- Heat Dissipation 40 Energy Generation 19 Energy Capacity 500 Matter Stores 300 Matter Capacity 300 Sight Range 16 Robot Scan Range 15 Terrain Scan Range 16 Terrain Scan Density 110 ECM Strength 2 Resistance: KI 35 Resistance: TH 35 Resistance: EX 35 Resistance: EM 35 Resistance: I 35 Resistance: S 35 Resistance: P 35 Weapon Shielding 33 Evasion (%) 64 Recoil Reduction 1 Offensive Hacking 20 Item Schematics ----------------- None Robot Schematics ------------------ None Fabricated ------------ Nothing Repaired ---------- Nothing Studied --------- None Alien Tech Used ----------------- None Achievements -------------- Overachiever Streaker Challenges ------------ None Cogshop Purchases (23) ------------------------ Hvy. Assault Rifle (Loot Box) Nuclear Core (Loot Box) Katana (Loot Box) Weapon Shielding (Loot Box) Flak Cannon (Loot Box) Great Maul (Loot Box) Rocket Launcher (Loot Box) Maul (Loot Box) Maul (Loot Box) Lgt. Assault Rifle (Loot Box) Adv. ECM Suite (Loot Box) Ovr. Treads (527) Imp. Terrain Scan Processor (639) Imp. Terrain Scanner (329) Imp. Signal Interpreter (639) Imp. Sensor Array (329) Imp. Airjet (797) Imp. Airjet (797) Imp. Airjet (797) Hvy. Deuterium Engine (691) F-cell Engine (879) Enh. Nuclear Core (931) Com. Wheel (617) Game ------ Seed AerolevScrapoidSlayer Manual? 0 Play Time 00:47:23 Cumulative 525.8 hours Start 2026.08.17 @ 23:49:47 End 2026.08.18 @ 00:34:02 Sessions 1 Manual Loads 0 Difficulty Explorer Special Mode AFD2019/Pay2Buy Game No. 32 Rogue 5 Adventurer 1 Explorer 26 Win Type - Total 5 Types 5/0/0/0/0/0/0/0/0/0 Lore% 52 Gallery% 53 Achievement% 50 Wizard Run 0 Options --------- Layout 0 ASCII 0 Keyboard 0 Movement Arrows Keybinds 0 Fullscreen 2 Font 18/X11 Map View 38x25 Zoom Use 87% Tactical HUD 1 Map Filters NONE Filters NONE Steam 1 RUN: 52f266a3-f3ca-46b8-91b2-bdaf19e63d7c